bitfinex/quotes_BTCUSD_20240911
["timestamp","ask_amount","ask_price","bid_price","bid_amount"]
[1726065786993,3.04611274,55828.0,55827.0,0.0040608]
[1726065787236,3.02295416,55828.0,55827.0,0.0040608]
[1726065787458,3.05104404,55828.0,55827.0,0.0040608]
[1726065787684,3.05104404,55828.0,55825.0,4.083e-05]
[1726065787685,1.67201316,55826.0,55825.0,4.083e-05]
[1726065787922,1.31375716,55826.0,55825.0,4.083e-05]
[1726065788161,1.31375716,55826.0,55819.0,0.0021166]
[1726065788162,0.895735,55820.0,55819.0,0.0021166]
[1726065788374,0.05986116,55820.0,55819.0,0.0021166]
[1726065788619,0.05986116,55820.0,55819.0,0.2245166]
[1726065788899,1.124,55828.0,55819.0,0.2245166]
[1726065788900,1.124,55828.0,55820.0,0.023]
[1726065788901,0.03,55821.0,55820.0,0.023]
[1726065789117,0.05809198,55820.0,55819.0,0.3989166]
[1726065789339,0.02809198,55820.0,55819.0,0.3989166]
[1726065789560,0.209145,55821.0,55820.0,0.2306]
[1726065789783,0.03,55821.0,55820.0,0.2306]
[1726065789999,0.03,55821.0,55820.0,0.22612941]
[1726065790220,0.05809136,55821.0,55820.0,0.24912941]
[1726065790656,0.02809136,55821.0,55820.0,0.42727641]
[1726065790875,0.03,55823.0,55822.0,0.17914]
[1726065791094,0.03,55823.0,55822.0,0.023]
[1726065791311,0.03,55823.0,55821.0,0.202143]
[1726065791536,0.03,55823.0,55822.0,0.17914]
[1726065791956,0.03,55823.0,55822.0,0.537421]
[1726065792395,0.342,55828.0,55823.0,0.1796]
[1726065792657,0.03,55828.0,55827.0,0.179123]
[1726065792898,0.03,55828.0,55827.0,0.03592]
[1726065793136,0.03,55832.0,55825.0,0.1762]
[1726065793374,0.03,55832.0,55828.0,0.17912]
[1726065793619,0.03,55832.0,55829.0,0.022]
[1726065793852,0.03,55832.0,55831.0,0.179111]
[1726065794101,0.03,55832.0,55830.0,0.3918]
[1726065794305,0.05808645,55832.0,55830.0,0.3918]
[1726065794558,0.59719516,55831.0,55830.0,0.224]
[1726065794773,0.03,55831.0,55830.0,0.224]
[1726065795394,0.02808645,55832.0,55831.0,0.179111]
[1726065795616,0.02808645,55832.0,55831.0,0.1739]
[1726065796291,0.02808645,55832.0,55831.0,0.353011]
[1726065796531,0.02808645,55832.0,55831.0,0.734234]
[1726065796769,0.02908645,55832.0,55831.0,0.734234]
[1726065797209,0.02808645,55832.0,55831.0,0.734234]
[1726065797651,0.02808645,55832.0,55831.0,0.736234]
[1726065797877,0.02808645,55832.0,55831.0,1.130377]
[1726065798127,0.02808645,55832.0,55831.0,1.8463234]
[1726065798368,0.02808645,55832.0,55831.0,1.7483]
[1726065799790,0.00054,55849.0,55848.0,0.895285]
[1726065800045,0.03054,55849.0,55848.0,0.968491]
[1726065800281,0.03054,55849.0,55848.0,1.349605]
[1726065800515,0.00054,55849.0,55848.0,1.707719]
[1726065801017,0.00054,55849.0,55848.0,1.737719]
[1726065802414,0.00054,55849.0,55848.0,2.095833]
[1726065802631,0.00054,55849.0,55848.0,2.09797184]
[1726065803082,0.03090659,55862.0,55861.0,1.509728]
[1726065803345,5.9e-07,55862.0,55861.0,2.81445984]
[1726065803605,0.000817,55864.0,55863.0,1.67913984]
[1726065803820,0.06350866,55888.0,55874.0,0.83898084]
[1726065803821,0.0036475,55888.0,55874.0,0.83898084]
[1726065804059,0.0036475,55888.0,55874.0,1.91482484]
[1726065804297,0.0036475,55888.0,55874.0,2.08372484]
[1726065804761,0.0036475,55888.0,55874.0,1.72377684]
[1726065805211,0.03,55885.0,55874.0,0.977742]
[1726065805441,0.05986116,55885.0,55874.0,0.619794]
[1726065805940,0.178957,55880.0,55874.0,0.44082]
[1726065806177,0.178957,55880.0,55874.0,0.27192]
[1726065806178,0.03,55877.0,55874.0,0.27192]
[1726065806412,0.0038305,55875.0,55874.0,0.27892]
[1726065806626,0.0038305,55875.0,55874.0,0.815842]
[1726065806842,0.0038305,55875.0,55874.0,0.8616322]
[1726065807054,0.0028305,55875.0,55874.0,0.4966842]
[1726065807573,0.0038305,55875.0,55874.0,0.457894]
[1726065807808,0.0038305,55875.0,55874.0,0.815842]
[1726065808088,0.0028305,55875.0,55874.0,0.808842]
[1726065808314,0.0028305,55875.0,55874.0,1.16679]
[1726065808558,0.0028305,55875.0,55874.0,1.554738]
[1726065808798,0.0028305,55875.0,55874.0,1.86367195]
[1726065809035,0.0028305,55875.0,55874.0,1.723538]
[1726065809282,0.0028305,55875.0,55874.0,1.72367684]
[1726065809503,0.0038305,55875.0,55874.0,1.73067684]
[1726065809733,0.0038305,55875.0,55874.0,1.73267684]
[1726065809949,0.0038305,55875.0,55874.0,1.86881079]
[1726065810169,0.0038305,55875.0,55874.0,1.73067684]
[1726065810388,0.0046475,55875.0,55874.0,1.73067684]
[1726065810670,0.0046475,55875.0,55874.0,1.72367684]
[1726065810671,0.0036475,55875.0,55874.0,1.72367684]
[1726065810889,0.000817,55891.0,55887.0,0.98358]
[1726065811137,0.000817,55891.0,55887.0,1.741544]
[1726065811596,0.000817,55891.0,55887.0,1.74168284]
[1726065812070,0.000817,55891.0,55887.0,2.10154684]
[1726065812311,0.000817,55891.0,55890.0,2.02139496]
[1726065812531,0.0021166,55897.0,55896.0,2.01926196]
[1726065813234,0.0021166,55897.0,55896.0,1.01976884]
[1726065813454,0.0021166,55897.0,55896.0,0.03492]
[1726065813696,0.0021166,55897.0,55896.0,0.03392]
[1726065813941,0.178908,55895.0,55891.0,0.2108]
[1726065814191,0.0031651,55898.0,55897.0,0.8945]
[1726065814411,0.0031651,55898.0,55897.0,0.9692]
[1726065814659,0.0031651,55898.0,55897.0,0.4025]
[1726065814880,0.0031651,55898.0,55889.0,0.3942]
[1726065815129,0.59656416,55897.0,55896.0,0.005]
[1726065815347,0.95436716,55897.0,55896.0,0.005]
[1726065815803,0.59656416,55897.0,55896.0,0.005]
[1726065816020,0.23876116,55897.0,55896.0,0.005]
[1726065816264,0.0031651,55898.0,55897.0,0.59562]
[1726065816499,0.0031651,55898.0,55897.0,1.6076438]
[1726065816721,0.0031651,55898.0,55897.0,1.12782]
[1726065817450,0.0031651,55898.0,55897.0,0.41222]
[1726065817663,0.0031651,55898.0,55897.0,0.24032]
[1726065817887,0.0031651,55898.0,55897.0,0.06592]
[1726065818140,0.5398561,55898.0,55897.0,0.05892]
[1726065818634,0.5398561,55898.0,55897.0,0.06992]
[1726065818887,0.8976501,55898.0,55897.0,0.06992]
[1726065819130,0.59971726,55898.0,55897.0,0.06992]
[1726065819352,0.98556537,55898.0,55897.0,0.06992]
[1726065819800,1.34335937,55898.0,55897.0,0.023]
[1726065820244,1.34335937,55898.0,55897.0,0.03]
[1726065820486,1.34335937,55898.0,55897.0,0.007]
[1726065820487,1.38256197,55898.0,55897.0,0.007]
[1726065820725,1.70115337,55898.0,55897.0,0.007]
[1726065820996,1.67309926,55898.0,55897.0,0.007]
[1726065821210,0.178967,55876.0,55875.0,0.73485264]
[1726065821451,0.03,55879.0,55875.0,0.73485264]
[1726065821452,0.178966,55877.0,55875.0,0.73485264]
[1726065821696,0.03,55879.0,55875.0,0.2095]
[1726065821697,0.178967,55876.0,55875.0,0.2095]
[1726065821931,0.178993,55868.0,55867.0,0.03592]
[1726065822157,0.536979,55868.0,55867.0,0.03592]
[1726065822408,0.536979,55868.0,55853.0,0.0028215]
[1726065822409,0.358002,55866.0,55860.0,0.23]
[1726065822845,0.05986116,55868.0,55860.0,0.23]
[1726065823062,0.358001,55866.0,55860.0,0.26592]
[1726065823278,0.03,55867.0,55860.0,0.26592]
[1726065823279,0.208998,55867.0,55860.0,0.26592]
[1726065823524,0.03,55867.0,55862.0,0.03592]
[1726065823981,0.179009,55863.0,55862.0,0.03592]
[1726065824453,0.179009,55863.0,55853.0,0.7189795]
[1726065824454,0.03,55861.0,55855.0,0.03592]
[1726065824677,0.03,55860.0,55855.0,0.03592]
[1726065824928,0.03,55860.0,55853.0,0.0028215]
[1726065824929,0.537094,55856.0,55853.0,0.0028215]
[1726065825163,0.179038,55854.0,55853.0,0.0028215]
[1726065825387,0.537114,55854.0,55853.0,0.0028215]
[1726065825840,0.567114,55854.0,55853.0,0.0028215]
[1726065826105,0.03,55856.0,55853.0,0.0028215]
[1726065826317,0.02807294,55859.0,55858.0,0.179025]
[1726065826563,0.02807294,55859.0,55858.0,0.707475]
[1726065826785,0.02807294,55859.0,55858.0,0.349425]
[1726065827016,0.02807294,55859.0,55858.0,0.22932]
[1726065827250,0.56513894,55859.0,55858.0,0.05892]
[1726065827499,0.02807294,55859.0,55858.0,0.05892]
[1726065827728,0.02807294,55859.0,55853.0,0.0028215]
[1726065827729,0.179038,55854.0,55853.0,0.0028215]
[1726065828172,0.179038,55854.0,55853.0,0.0088215]
[1726065828405,0.03,55855.0,55853.0,0.0088215]
[1726065828632,0.03,55858.0,55855.0,0.179033]
[1726065828859,0.02807294,55859.0,55855.0,0.179033]
[1726065828860,0.03,55856.0,55855.0,0.08129745]
[1726065829087,0.03,55858.0,55855.0,0.05892]
[1726065829299,0.02807294,55859.0,55853.0,0.0168215]
[1726065829300,0.209028,55857.0,55856.0,0.023]
[1726065829557,0.209028,55857.0,55854.0,0.023]
[1726065829558,0.179037,55855.0,55854.0,0.023]
[1726065829750,0.537107,55855.0,55854.0,0.023]
[1726065830244,0.925177,55855.0,55854.0,0.023]
[1726065830460,0.209037,55855.0,55854.0,0.023]
[1726065830672,0.03,55855.0,55854.0,0.202038]
[1726065830891,0.03,55860.0,55858.0,0.023]
[1726065831110,0.535179,55870.0,55858.0,0.202025]
[1726065831111,0.03,55859.0,55858.0,0.202025]
[1726065831363,0.03,55860.0,55859.0,0.023]
[1726065831610,0.59691616,55860.0,55859.0,0.023]
[1726065831837,0.209035,55855.0,55854.0,0.023]
[1726065832096,1.12783616,55855.0,55854.0,0.013]
[1726065832319,1.85562861,55855.0,55854.0,0.013]
[1726065832526,0.95505116,55854.0,55841.0,0.52535264]
[1726065832739,0.95505116,55854.0,55836.0,0.00387]
[1726065832740,1.31312716,55854.0,55842.0,0.52535264]
[1726065832969,1.31312716,55854.0,55836.0,0.00387]
[1726065833658,2.06590316,55854.0,55836.0,0.00387]
[1726065834615,1.70782716,55854.0,55836.0,0.00387]
[1726065834958,1.70782716,55854.0,55839.0,0.17929958]
[1726065835191,1.34975116,55854.0,55840.0,0.52535264]
[1726065835393,1.34975116,55854.0,55841.0,0.358158]
[1726065835394,0.79365613,55854.0,55841.0,0.358158]
[1726065835766,0.79365613,55854.0,55853.0,0.0258215]
[1726065835767,0.05808097,55854.0,55853.0,0.0258215]
[1726065836183,0.59519497,55854.0,55853.0,0.0258215]
[1726065836397,0.23711897,55854.0,55853.0,0.0258215]
[1726065836619,0.59519497,55854.0,55853.0,0.0258215]
[1726065836840,0.23711897,55854.0,55853.0,0.0258215]
[1726065837485,0.59519497,55854.0,55853.0,0.0258215]
[1726065837734,0.23711897,55854.0,55853.0,0.0258215]
[1726065837944,0.23711897,55854.0,55853.0,0.2048625]
[1726065837945,0.05808097,55854.0,55853.0,0.2048625]
[1726065838201,0.05808097,55854.0,55853.0,0.97732225]
[1726065838202,0.02808097,55854.0,55853.0,0.97732225]
[1726065838436,0.02808097,55854.0,55853.0,1.36612225]
[1726065838909,0.02808097,55854.0,55853.0,1.75420425]
[1726065839347,0.02808097,55854.0,55853.0,1.79012425]
[1726065839786,0.03,55866.0,55853.0,2.14834509]
[1726065840026,0.02986116,55874.0,55867.0,0.536989]
[1726065840027,0.03,55868.0,55867.0,0.536989]
[1726065840328,0.03,55868.0,55867.0,0.237916]
[1726065840496,0.03,55868.0,55867.0,0.416913]
[1726065840725,0.03,55868.0,55867.0,0.05892]
[1726065840940,0.03,55868.0,55865.0,0.023]
[1726065841163,0.02986116,55870.0,55861.0,0.748229]
[1726065841164,0.03,55866.0,55863.0,0.202008]
[1726065841389,0.02986116,55869.0,55855.0,0.358069]
[1726065841390,0.05986116,55860.0,55855.0,0.358069]
[1726065841643,0.05986116,55860.0,55854.0,0.213]
[1726065841886,0.03,55855.0,55847.0,0.27892]
[1726065842117,0.03,55855.0,55854.0,0.573034]
[1726065843023,0.03,55861.0,55860.0,0.358037]
[1726065843252,0.03,55864.0,55863.0,0.595947]
[1726065843472,0.1784,55872.0,55865.0,0.023]
[1726065843473,0.03,55866.0,55865.0,0.023]
[1726065843712,0.23886016,55866.0,55865.0,0.023]
[1726065843943,0.002,55887.0,55865.0,0.023]
[1726065843944,0.05986116,55873.0,55865.0,0.358002]
[1726065844187,0.03,55868.0,55867.0,0.023]
[1726065844413,0.03,55875.0,55870.0,0.357973]
[1726065844639,0.02986116,55880.0,55872.0,0.559939]
[1726065844640,0.03,55873.0,55872.0,0.559939]
[1726065844857,0.03,55873.0,55870.0,0.03592]
[1726065845071,0.02806663,55874.0,55873.0,0.789031]
[1726065845289,0.05806663,55874.0,55873.0,0.559931]
[1726065845523,0.05806663,55874.0,55873.0,0.201977]
[1726065845972,0.05806663,55874.0,55873.0,0.237897]
[1726065846220,0.05806663,55874.0,55873.0,0.05892]
[1726065846450,0.05806663,55874.0,55873.0,0.023]
[1726065846451,0.44940179,55874.0,55873.0,0.023]
[1726065846675,0.03,55866.0,55863.0,0.202008]
[1726065846935,0.608505,55874.0,55857.0,0.03592]
[1726065846936,0.05986116,55861.0,55857.0,0.03592]
[1726065847179,0.179022,55859.0,55857.0,0.03592]
[1726065847390,0.05986116,55861.0,55857.0,0.03592]
[1726065847391,0.08793271,55861.0,55857.0,0.03592]
[1726065847822,0.23708855,55861.0,55858.0,0.03592]
[1726065848033,0.05807155,55861.0,55860.0,0.537055]
[1726065848277,0.05807155,55861.0,55860.0,0.023]
[1726065848746,0.05807155,55861.0,55860.0,0.560055]
[1726065849402,0.05807155,55861.0,55860.0,1.6323513]
[1726065849615,0.02807155,55861.0,55860.0,1.6323513]
[1726065849832,0.02807155,55861.0,55860.0,1.8131513]
[1726065850052,0.02807155,55861.0,55860.0,1.8431513]
[1726065850264,0.000817,55866.0,55865.0,1.311937]
[1726065850529,0.000817,55866.0,55865.0,1.35466865]
[1726065851010,0.000817,55866.0,55865.0,1.311937]
[1726065851713,0.000817,55866.0,55865.0,1.915142]
[1726065851964,0.000817,55866.0,55865.0,2.08408084]
[1726065852175,0.000817,55866.0,55865.0,2.44408584]
[1726065852422,0.02807038,55874.0,55873.0,1.701713]
[1726065852631,0.02807038,55874.0,55873.0,2.076413]
[1726065852857,0.06067716,55896.0,55895.0,0.894532]
[1726065853108,0.000816,55896.0,55895.0,1.104732]
[1726065853322,0.000816,55896.0,55895.0,1.462545]
[1726065853558,0.05692953,55896.0,55895.0,1.462545]
[1726065854006,0.05692953,55896.0,55895.0,1.498465]
[1726065854235,0.05692953,55896.0,55895.0,1.140652]
[1726065854416,0.05692953,55896.0,55895.0,1.163652]
[1726065854676,0.05692953,55896.0,55895.0,0.07292]
[1726065854916,0.05692953,55896.0,55895.0,0.251826]
[1726065855136,0.05692953,55896.0,55895.0,0.237826]
[1726065855362,0.05692953,55896.0,55895.0,0.05892]
[1726065855363,0.29569369,55896.0,55895.0,0.05892]
[1726065855628,0.29569369,55896.0,55895.0,0.07292]
[1726065855829,0.65350069,55896.0,55895.0,0.014]
[1726065856255,1.01130769,55896.0,55895.0,0.014]
[1726065856480,0.11679069,55896.0,55895.0,0.014]
[1726065856720,0.29569369,55896.0,55895.0,0.037]
[1726065856978,0.05986116,55890.0,55889.0,0.05892]
[1726065857647,0.05986116,55890.0,55883.0,0.03592]
[1726065857648,0.05986116,55889.0,55883.0,0.03592]
[1726065857869,0.41771316,55889.0,55883.0,0.03592]
[1726065858079,0.95457116,55884.0,55883.0,0.03592]
[1726065858331,0.05986116,55884.0,55883.0,0.03592]
[1726065858992,0.08792237,55884.0,55883.0,0.572755]
[1726065859206,0.08792237,55884.0,55883.0,0.214865]
[1726065859416,0.08792237,55884.0,55883.0,0.572755]
[1726065859653,0.08792237,55884.0,55883.0,0.237865]
[1726065859877,0.08792237,55884.0,55883.0,0.595755]
[1726065860093,0.08792237,55884.0,55883.0,0.237865]
[1726065860304,0.08792237,55884.0,55883.0,0.595755]
[1726065860782,0.08792237,55884.0,55883.0,0.05892]
[1726065861007,0.05986116,55884.0,55883.0,0.595755]
[1726065861446,0.05986116,55884.0,55883.0,0.06992]
[1726065861704,0.41774516,55884.0,55883.0,0.034]
[1726065861910,0.05986116,55878.0,55877.0,0.178964]
[1726065862127,0.05986116,55878.0,55869.0,0.2255]
[1726065862389,0.05986116,55878.0,55875.0,0.17897]
[1726065862629,0.23882416,55878.0,55874.0,0.178972]
[1726065862884,0.03,55872.0,55870.0,0.03592]
[1726065863118,0.03,55872.0,55871.0,0.178983]
[1726065863560,0.03,55872.0,55871.0,0.53695]
[1726065863788,0.03,55872.0,55871.0,0.930837]
[1726065864032,0.03,55872.0,55871.0,0.59587]
[1726065864247,0.05986116,55872.0,55871.0,0.05892]
[1726065864470,0.03,55872.0,55871.0,0.59587]
[1726065864735,0.03,55872.0,55871.0,1.3594939]
[1726065864962,0.03,55872.0,55871.0,0.959837]
[1726065865186,0.03,55873.0,55872.0,0.953822]
[1726065865424,0.03,55876.0,55875.0,0.21489]
[1726065865671,0.1679,55886.0,55875.0,0.21489]
[1726065865672,0.03,55887.0,55883.0,0.35789]
[1726065865942,0.03,55885.0,55884.0,0.559826]
[1726065866160,0.03,55884.0,55883.0,0.201945]
[1726065866373,0.03,55884.0,55875.0,0.2283]
[1726065866374,0.05986116,55884.0,55881.0,0.178948]
[1726065866594,0.3859263,55887.0,55883.0,0.237865]
[1726065866595,0.26685446,55887.0,55883.0,0.237865]
[1726065866816,0.05986116,55884.0,55883.0,0.9773022]
[1726065867253,0.05986116,55884.0,55883.0,0.201945]
[1726065867740,0.05986116,55884.0,55883.0,0.595755]
[1726065867996,0.0280613,55887.0,55886.0,0.559806]
[1726065868208,0.0280613,55887.0,55886.0,1.275548]
[1726065868670,0.0280613,55887.0,55886.0,1.311468]
[1726065869144,0.0280613,55887.0,55886.0,0.953597]
[1726065869847,0.0280613,55887.0,55886.0,0.05892]
[1726065870081,0.05986116,55884.0,55878.0,0.03592]
[1726065870288,0.05986116,55884.0,55883.0,0.536835]
[1726065870508,0.03,55885.0,55884.0,0.178942]
[1726065870770,0.03,55885.0,55876.0,0.357931]
[1726065870771,0.03,55886.0,55885.0,0.178938]
[1726065871001,0.03,55886.0,55885.0,0.572735]
[1726065871219,0.03,55886.0,55885.0,0.930612]
[1726065871649,0.42707378,55896.0,55887.0,0.2063]
[1726065871650,0.03,55888.0,55887.0,0.2063]
[1726065871884,0.03,55893.0,55892.0,0.715664]
[1726065872151,0.02887378,55896.0,55895.0,0.559719]
[1726065872394,0.05887378,55896.0,55895.0,0.201906]
[1726065872613,0.05887378,55896.0,55886.0,0.2297]
[1726065872614,0.05986116,55895.0,55894.0,0.023]
[1726065872867,0.05986116,55894.0,55887.0,0.023]
[1726065873086,0.05986116,55894.0,55886.0,0.2297]
[1726065873087,0.05986116,55894.0,55893.0,0.05892]
[1726065873335,0.05986116,55894.0,55893.0,0.023]
[1726065873515,0.05986116,55894.0,55892.0,0.023]
[1726065874010,0.05986116,55894.0,55892.0,0.026]
[1726065874254,0.178913,55893.0,55892.0,0.026]
[1726065874483,0.178913,55893.0,55889.0,0.023]
[1726065874484,0.05986116,55890.0,55889.0,0.023]
[1726065874718,0.23878316,55890.0,55889.0,0.023]
[1726065874953,0.23878316,55890.0,55882.0,0.357893]
[1726065874954,0.05986116,55886.0,55880.0,0.357907]
[1726065875146,0.05986116,55886.0,55885.0,0.559815]
[1726065875363,0.1801,55893.0,55882.0,0.03592]
[1726065875364,0.05986116,55883.0,55882.0,0.03592]
[1726065875586,0.178951,55882.0,55876.0,0.35793]
[1726065875835,0.05986116,55883.0,55873.0,0.837449]
[1726065875836,0.05986116,55881.0,55873.0,0.837449]
[1726065876071,0.05986116,55876.0,55874.0,0.03592]
[1726065876570,0.05986116,55871.0,55867.0,0.178993]
[1726065876822,0.05986116,55871.0,55867.0,0.178995]
[1726065876823,0.23884616,55871.0,55867.0,0.178995]
[1726065877087,0.23884616,55871.0,55866.0,0.0021896]
[1726065877088,0.41855716,55867.0,55866.0,0.0021896]
[1726065877354,0.77655016,55867.0,55866.0,0.0021896]
[1726065877555,1.13454316,55867.0,55866.0,0.0021896]
[1726065877769,1.49253616,55867.0,55866.0,0.0021896]
[1726065878511,1.78983614,55867.0,55866.0,0.0021896]
[1726065878997,1.78983614,55867.0,55857.0,0.349]
[1726065878998,1.69691516,55859.0,55857.0,0.349]
[1726065879218,0.62893616,55858.0,55857.0,0.349]
[1726065879443,1.74873616,55858.0,55857.0,0.349]
[1726065879662,2.10678616,55858.0,55857.0,0.349]
[1726065879947,2.13486512,55858.0,55857.0,0.349]
[1726065880186,2.37103467,55858.0,55857.0,0.349]
[1726065880410,0.23892816,55845.0,55835.0,0.52535264]
[1726065880645,1.18377385,55845.0,55835.0,0.52535264]
[1726065880865,1.90204185,55845.0,55835.0,0.52535264]
[1726065881103,1.90204185,55845.0,55833.0,0.0024267]
[1726065881589,1.75360816,55840.0,55833.0,0.0024267]
[1726065882062,2.31707771,55840.0,55833.0,0.0024267]
[1726065882295,2.85495317,55840.0,55833.0,0.0024267]
[1726065883253,2.37707771,55840.0,55833.0,0.0024267]
[1726065883732,1.81074216,55840.0,55833.0,0.0024267]
[1726065883958,1.81083381,55840.0,55833.0,0.0024267]
[1726065884412,1.86883381,55840.0,55833.0,0.0024267]
[1726065884867,1.87083381,55840.0,55833.0,0.0024267]
[1726065885135,2.22899981,55840.0,55833.0,0.0024267]
[1726065885385,2.40516936,55840.0,55833.0,0.0024267]
[1726065886067,2.18347916,55834.0,55833.0,0.0024267]
[1726065886748,2.21157278,55834.0,55833.0,0.0024267]
[1726065887009,3.31346678,55834.0,55829.0,0.001634]
[1726065887245,3.31346678,55834.0,55801.0,0.03592]
[1726065887246,3.31346678,55834.0,55811.0,0.001634]
[1726065887247,0.26903316,55812.0,55811.0,0.001634]
[1726065887504,0.26903316,55812.0,55811.0,0.002393]
[1726065887505,10.02644364,55812.0,55811.0,0.002393]
[1726065887737,12.62993429,55812.0,55811.0,0.002393]
[1726065887971,12.45685529,55812.0,55811.0,0.002393]
[1726065888228,1.09582116,55806.0,55802.0,0.23268494]
[1726065888487,0.89986516,55803.0,55802.0,0.17058115]
[1726065888729,5.1969859,55803.0,55802.0,0.01508115]
[1726065888992,4.7470829,55803.0,55802.0,0.01508115]
[1726065889247,5.28365545,55803.0,55802.0,0.01508115]
[1726065889473,5.85036852,55803.0,55802.0,0.01508115]
[1726065890219,5.48996552,55803.0,55802.0,0.01508115]
[1726065890467,0.47857123,55803.0,55802.0,0.01508115]
[1726065890697,0.05986116,55803.0,55802.0,0.01508115]
[1726065890922,0.05986116,55803.0,55802.0,0.03808115]
[1726065891713,0.03,55803.0,55802.0,0.79939615]
[1726065891949,0.06286116,55803.0,55802.0,0.26178115]
[1726065892181,0.03,55803.0,55802.0,1.15780615]
[1726065892400,0.03,55805.0,55803.0,0.023]
[1726065892621,0.358303,55819.0,55803.0,0.023]
[1726065892622,0.03,55812.0,55811.0,0.537528]
[1726065892864,0.03,55812.0,55811.0,0.741328]
[1726065893090,0.05986116,55812.0,55811.0,0.2038]
[1726065893329,0.001,55803.0,55802.0,0.57569315]
[1726065893794,0.001,55803.0,55802.0,0.93410315]
[1726065894024,0.02910177,55803.0,55802.0,0.57569315]
[1726065894267,0.02904221,55803.0,55802.0,0.57569315]
[1726065894511,0.02904221,55803.0,55802.0,0.21728315]
[1726065894738,0.02904221,55803.0,55802.0,0.03808115]
[1726065894739,0.02810177,55803.0,55802.0,0.03808115]
[1726065894957,0.08796293,55803.0,55802.0,0.03808115]
[1726065895197,0.08796293,55803.0,55802.0,0.21728615]
[1726065895445,0.08796293,55803.0,55802.0,0.57569615]
[1726065895677,0.05810177,55803.0,55802.0,0.61161615]
[1726065895900,0.02810177,55803.0,55802.0,0.73517567]
[1726065896115,0.05810177,55803.0,55802.0,0.61461615]
[1726065896343,0.05810177,55803.0,55802.0,0.97002615]
[1726065896587,0.02810177,55803.0,55802.0,1.34243615]
[1726065896877,0.05986116,55817.0,55815.0,0.023]
[1726065897117,0.1804,55836.0,55815.0,0.023]
[1726065897118,0.03,55833.0,55832.0,0.560325]
[1726065897343,0.05986116,55830.0,55829.0,0.202118]
[1726065897583,0.05986116,55827.0,55823.0,0.1704]
[1726065897802,0.05986116,55825.0,55823.0,0.1704]
[1726065898046,0.05986116,55825.0,55824.0,0.179134]
[1726065898288,0.03,55825.0,55824.0,0.95359]
[1726065898744,0.02986116,55823.0,55822.0,0.17914]
[1726065898967,0.05986116,55825.0,55822.0,0.17914]
[1726065899218,0.751715,55833.0,55822.0,0.17914]
[1726065899219,0.05986116,55823.0,55822.0,0.537421]
[1726065899448,0.05986116,55823.0,55820.0,0.03592]
[1726065899449,0.05986116,55823.0,55820.0,0.215065]
[1726065899678,0.05986116,55819.0,55818.0,0.581753]
[1726065899895,0.05986116,55819.0,55818.0,1.298367]
[1726065900120,0.05986116,55819.0,55818.0,1.692594]
[1726065900329,0.05986116,55819.0,55818.0,1.357287]
[1726065900589,0.358211,55834.0,55819.0,0.023]
[1726065900590,0.05986116,55820.0,55819.0,0.023]
[1726065900850,0.001,55825.0,55820.0,0.179147]
[1726065900851,0.03,55821.0,55820.0,0.179147]
[1726065901065,0.001,55825.0,55824.0,0.202134]
[1726065901298,0.031,55825.0,55824.0,0.95459]
[1726065901516,0.031,55825.0,55824.0,1.276938]
[1726065901517,0.001,55825.0,55824.0,1.276938]
[1726065901735,0.03,55825.0,55824.0,0.91867]
[1726065902190,0.03,55825.0,55824.0,0.95459]
[1726065902431,0.179099,55835.0,55834.0,0.179102]
[1726065902432,0.05986116,55835.0,55834.0,0.179102]
[1726065902679,0.000817,55840.0,55839.0,0.91843]
[1726065902901,0.000817,55840.0,55839.0,2.045074]
[1726065903157,0.05986116,55862.0,55859.0,0.560066]
[1726065903397,0.01869607,55872.0,55859.0,0.560066]
[1726065903398,0.03,55861.0,55859.0,0.202022]
[1726065903649,0.03,55870.0,55859.0,2.14207346]
[1726065903890,0.05986116,55870.0,55859.0,1.485854]
[1726065904117,0.05986116,55870.0,55859.0,1.521774]
[1726065904340,0.05986116,55870.0,55859.0,1.277647]
[1726065904577,0.05986116,55870.0,55859.0,1.521774]
[1726065904850,0.03,55873.0,55859.0,1.911818]
[1726065905092,0.0021166,55875.0,55874.0,0.95379]
[1726065905093,0.0321166,55875.0,55874.0,0.95379]
[1726065905335,0.0321166,55875.0,55874.0,0.559922]
[1726065906049,0.0321166,55875.0,55874.0,0.201974]
[1726065906260,0.0021166,55875.0,55874.0,0.95379]
[1726065906471,0.0021166,55875.0,55874.0,1.5367225]
[1726065906703,0.0021166,55875.0,55874.0,1.678938]
[1726065906933,0.0021166,55875.0,55874.0,1.714938]
[1726065907146,0.03,55884.0,55877.0,0.201964]
[1726065907368,0.05986116,55884.0,55877.0,0.559893]
[1726065907582,0.05986116,55892.0,55877.0,1.305751]
[1726065907867,0.05986116,55892.0,55877.0,1.4398551]
[1726065908118,0.000817,55894.0,55893.0,0.178913]
[1726065908350,0.000817,55894.0,55893.0,0.969759]
[1726065908594,0.000817,55894.0,55891.0,0.023]
[1726065908833,0.000817,55894.0,55893.0,0.023]
[1726065909050,0.03,55892.0,55888.0,0.023]
[1726065909298,0.000817,55894.0,55893.0,0.595639]
[1726065909519,0.000817,55894.0,55893.0,0.572739]
[1726065909995,0.000817,55894.0,55893.0,0.559739]
[1726065910226,0.000817,55894.0,55893.0,0.917565]
[1726065910446,0.000817,55894.0,55893.0,0.953465]
[1726065910766,0.000817,55894.0,55893.0,1.0488115]
[1726065910854,0.000817,55894.0,55893.0,0.953465]
[1726065911554,0.000817,55894.0,55893.0,2.2057053]
[1726065911779,0.0038491,55895.0,55893.0,2.2057053]
[1726065911780,0.03013,55912.0,55909.0,0.214762]
[1726065912028,0.03013,55912.0,55909.0,0.559586]
[1726065912029,0.030816,55910.0,55909.0,0.559586]
[1726065912273,0.030816,55910.0,55909.0,0.237762]
[1726065912512,0.26758584,55910.0,55909.0,0.023]
[1726065912744,0.26758584,55910.0,55901.0,0.023]
[1726065912745,0.05986116,55908.0,55901.0,0.023]
[1726065912962,0.05986116,55908.0,55905.0,0.023]